fUST/lending_fUST_20250615
["ID","MTS","AMOUNT","RATE_DAILY","PERIOD"]
[365801333,1749921046255,-807.53,0.00023013,4]
[365801334,1749921046264,-460.0,0.00023013,4]
[365801335,1749921046274,-440.0,0.00023013,4]
[365801336,1749921046283,-460.0,0.00023013,4]
[365801337,1749921046292,-460.0,0.00023013,4]
[365801338,1749921046302,-460.0,0.00023013,4]
[365801340,1749921046311,-576.89,0.00023013,4]
[365801341,1749921046320,-460.0,0.00023013,4]
[365801342,1749921046330,-1068.84,0.00023013,4]
[365801344,1749921046339,-913.22,0.00023013,4]
[365801345,1749921046349,-1428.41,0.00023013,4]
[365801346,1749921046358,-460.0,0.00023013,4]
[365801347,1749921046367,-775.87,0.00023013,4]
[365801348,1749921046376,-460.0,0.00023013,4]
[365801349,1749921046386,-460.0,0.00023013,4]
[365801350,1749921046396,-460.0,0.00023013,4]
[365801351,1749921046406,-563.07766382,0.00023013,4]
[365801352,1749921046415,-2464.38,0.00023013,4]
[365801353,1749921046425,-460.0,0.00023013,4]
[365801354,1749921046434,-579.32,0.00023013,4]
[365801355,1749921046443,-488.76,0.00023013,4]
[365801356,1749921046452,-460.0,0.00023013,4]
[365801357,1749921046462,-2237.47,0.00023013,4]
[365801358,1749921046472,-460.0,0.00023013,4]
[365801359,1749921046481,-1409.71,0.00023013,4]
[365801360,1749921046490,-1333.89,0.00023013,4]
[365801361,1749921046500,-460.0,0.00023013,4]
[365801362,1749921046510,-573.37,0.00023013,4]
[365801363,1749921046519,-460.0,0.00023013,4]
[365801364,1749921046529,-460.0,0.00023013,4]
[365801365,1749921046539,-460.0,0.00023013,4]
[365801366,1749921046549,-2361.47,0.00023013,4]
[365801367,1749921046559,-733.37,0.00023013,2]
[365801368,1749921046570,-2628.77,0.00023013,4]
[365801369,1749921046579,-852.23,0.00023013,4]
[365801370,1749921046589,-460.0,0.00023013,4]
[365801371,1749921046599,-2817.62,0.00023013,4]
[365801372,1749921046609,-1217.97,0.00023013,4]
[365801373,1749921046619,-476.46,0.00023013,4]
[365801374,1749921046629,-460.0,0.00023013,4]
[365801375,1749921046639,-460.0,0.00023013,4]
[365801376,1749921046649,-460.0,0.00023013,4]
[365801377,1749921046659,-460.0,0.00023013,4]
[365801378,1749921046668,-460.0,0.00023013,4]
[365801379,1749921046678,-403.13753151,0.00023013,4]
[365801380,1749921046688,-1184.12,0.00023013,4]
[365801381,1749921046698,-460.0,0.00023013,4]
[365801382,1749921046708,-1416.1,0.00023013,4]
[365801383,1749921046717,-1577.86,0.00023013,4]
[365801384,1749921046727,-460.0,0.00023013,4]
[365801385,1749921046737,-2137.61,0.00023013,4]
[365801386,1749921046747,-238.9247005,0.00023013,4]
[365801387,1749921046756,-460.0,0.00023013,4]
[365801388,1749921046766,-498.71,0.00023013,4]
[365801389,1749921046776,-2608.27,0.00023013,4]
[365801390,1749921046786,-181.95830964,0.00023013,4]
[365801391,1749921046795,-460.0,0.00023013,4]
[365801392,1749921046806,-158.8714084,0.00023014,2]
[365801393,1749921046817,-176.9937618,0.00023014,2]
[365801394,1749921046827,-573.7859869,0.00023014,2]
[365801395,1749921046837,-176.9937618,0.00023014,2]
[365801396,1749921046846,-573.7859869,0.00023014,2]
[365801397,1749921046857,-1364.44460274,0.00023038,8]
[365801398,1749921046866,-1500.0,0.00023068,2]
[365801399,1749921046876,-180.754903,0.00023071,2]
[365801400,1749921046885,-500.0,0.00023127,2]
[365801401,1749921046894,-500.0,0.00023133,2]
[365801402,1749921046904,-500.0,0.00023133,2]
[365801403,1749921046914,-1364.44460274,0.00023141,8]
[365801404,1749921046924,-213.28201367,0.00023154,2]
[365801405,1749921046934,-845.10789306,0.00023154,2]
[365801406,1749921046944,-160.0,0.00023162,2]
[365801407,1749921046954,-424.40141186,0.00023162,2]
[365801408,1749921046965,-2758.35,0.00023163,2]
[365801409,1749921046975,-438.56657345,0.00023211,2]
[365801410,1749921046985,-1364.44460274,0.00023245,8]
[365801411,1749921046995,-1013.06686332,0.00023262,2]
[365801412,1749921047004,-160.0,0.00023286,2]
[365801413,1749921047017,-151.0,0.00023287,4]
[365801414,1749921047026,-151.0,0.00023287,4]
[365801415,1749921047036,-500.0,0.00023287,4]
[365801416,1749921047046,-500.0,0.00023287,4]
[365801417,1749921047055,-500.0,0.00023287,4]
[365801418,1749921047067,-500.0,0.00023287,4]
[365801419,1749921047077,-247.09869764,0.00023287,4]
[365801420,1749921047086,-460.62,0.00023287,4]
[365801421,1749921047096,-460.0,0.00023287,4]
[365801422,1749921047107,-460.0,0.00023287,4]
[365801423,1749921047117,-460.0,0.00023287,4]
[365801424,1749921047127,-460.0,0.00023287,4]
[365801425,1749921047137,-460.0,0.00023287,4]
[365801426,1749921047147,-460.0,0.00023287,4]
[365801427,1749921047158,-1028.0,0.00023287,4]
[365801428,1749921047169,-151.0,0.00023287,4]
[365801429,1749921047179,-271.97510472,0.00023287,4]
[365801430,1749921047189,-151.0,0.00023287,4]
[365801431,1749921047199,-500.0,0.00023287,4]
[365801432,1749921047208,-460.0,0.00023287,4]
[365801433,1749921047218,-1045.35,0.00023287,4]
[365801434,1749921047227,-822.01,0.00023287,4]
[365801435,1749921047238,-807.53,0.00023287,4]
[365801436,1749921047247,-163.56806507,0.00023287,4]
[365801437,1749921047258,-460.0,0.00023287,4]
[365801438,1749921047268,-460.0,0.00023287,4]
[365801439,1749921047278,-576.89,0.00023287,4]
[365801440,1749921047287,-460.0,0.00023287,4]
[365801441,1749921047297,-1068.84,0.00023287,4]
[365801442,1749921047307,-913.22,0.00023287,4]
[365801443,1749921047317,-1428.41,0.00023287,4]
[365801444,1749921047327,-460.0,0.00023287,4]
[365801445,1749921047337,-775.87,0.00023287,4]
[365801446,1749921047347,-440.0,0.00023287,4]
[365801447,1749921047357,-460.0,0.00023287,4]
[365801448,1749921047367,-404.58243388,0.00023287,4]
[365801449,1749921047378,-2464.38,0.00023287,4]
[365801450,1749921047389,-220.0,0.00023287,4]
[365801451,1749921047399,-579.32,0.00023287,4]
[365801452,1749921047410,-488.76,0.00023287,4]
[365801453,1749921047419,-460.0,0.00023287,4]
[365801454,1749921047430,-2237.47,0.00023287,4]
[365801455,1749921047440,-1409.71,0.00023287,4]
[365801456,1749921047450,-1333.89,0.00023287,4]
[365801457,1749921047460,-460.0,0.00023287,4]
[365801458,1749921047471,-573.37,0.00023287,4]
[365801459,1749921047481,-335.32988689,0.00023287,4]
[365801460,1749921047491,-460.0,0.00023287,4]
[365801461,1749921047501,-2361.47,0.00023287,4]
[365801462,1749921047511,-733.37,0.00023287,2]
[365801463,1749921047521,-2628.77,0.00023287,4]
[365801464,1749921047530,-852.23,0.00023287,4]
[365801465,1749921047540,-460.0,0.00023287,4]
[365801466,1749921047551,-2817.62,0.00023287,4]
[365801467,1749921047561,-1217.97,0.00023287,4]
[365801468,1749921047572,-476.46,0.00023287,4]
[365801469,1749921047583,-391.45555516,0.00023287,4]
[365801470,1749921047593,-460.0,0.00023287,4]
[365801471,1749921047603,-460.0,0.00023287,4]
[365801472,1749921047613,-460.0,0.00023287,4]
[365801473,1749921047623,-460.0,0.00023287,4]
[365801474,1749921047634,-1184.12,0.00023287,4]
[365801475,1749921047643,-460.0,0.00023287,4]
[365801476,1749921047654,-1416.1,0.00023287,4]
[365801477,1749921047664,-1577.86,0.00023287,4]
[365801478,1749921047674,-460.0,0.00023287,4]
[365801479,1749921047683,-2137.61,0.00023287,4]
[365801480,1749921047692,-460.0,0.00023287,4]
[365801481,1749921047703,-498.71,0.00023287,4]
[365801482,1749921047714,-2608.27,0.00023287,4]
[365801483,1749921047724,-460.0,0.00023287,4]
[365801484,1749921047733,-151.0,0.00023314,4]
[365801485,1749921047743,-259.93812939,0.00023314,4]
[365801486,1749921047753,-500.0,0.00023314,4]
[365801487,1749921047764,-500.0,0.00023314,4]
[365801488,1749921047774,-500.0,0.00023314,4]
[365801489,1749921047783,-500.0,0.00023314,4]
[365801490,1749921047793,-1028.0,0.00023314,4]
[365801491,1749921047803,-151.0,0.00023314,4]
[365801492,1749921047813,-500.0,0.00023314,4]
[365801493,1749921047823,-500.0,0.00023342,4]
[365801494,1749921047833,-297.15774951,0.00023342,4]
[365801495,1749921047843,-372.16588728,0.00023342,4]
[365801496,1749921047852,-500.0,0.00023342,4]
[365801497,1749921047862,-1028.0,0.00023342,4]
[365801498,1749921047872,-245.0,0.00023342,4]
[365801499,1749921047882,-500.0,0.00023342,4]
[365801500,1749921047892,-153.0,0.00023342,2]
[365801501,1749921047902,-153.0,0.00023342,2]
[365801502,1749921047912,-158.8714084,0.00023342,2]
[365801503,1749921047922,-158.8714084,0.00023342,2]
[365801504,1749921047931,-153.0,0.00023342,2]
[365801505,1749921047943,-573.7859869,0.00023342,2]
[365801506,1749921047953,-158.8714084,0.00023342,2]
[365801507,1749921047963,-600.0,0.00023346,2]
[365801508,1749921048095,-1364.44460274,0.00023348,9]
[365801509,1749921048105,-500.0,0.00023369,4]
[365801510,1749921048115,-500.0,0.00023369,4]
[365801511,1749921048125,-1028.0,0.00023369,4]
[365801512,1749921048134,-500.0,0.00023369,4]
[365801513,1749921048144,-506.08175786,0.00023397,4]
[365801514,1749921048154,-216.07771858,0.00023397,4]
[365801515,1749921048163,-1028.0,0.00023397,4]
[365801516,1749921048173,-500.0,0.00023397,4]
[365801517,1749921048182,-1028.0,0.00023424,4]
[365801518,1749921048192,-500.0,0.00023424,4]
[365801519,1749921048202,-1028.0,0.00023451,4]
[365801520,1749921048211,-500.0,0.00023451,4]
[365801521,1749921048222,-1364.44460274,0.00023452,9]
[365801522,1749921048231,-1028.0,0.00023479,4]
[365801523,1749921048242,-500.0,0.00023479,4]
[365801524,1749921048253,-9292.92674199,0.00023491,2]
[365801525,1749921048263,-68912.89,0.000235,7]
[365801526,1749921048272,-151.0,0.000235,7]
[365801527,1749921048283,-151.0,0.000235,7]
[365801528,1749921048293,-151.0,0.00023504,7]
[365801529,1749921048303,-151.0,0.00023504,7]
[365801530,1749921048313,-151.0,0.00023504,7]
[365801531,1749921048323,-151.0,0.00023504,7]
[365801532,1749921048333,-5000.0,0.00023504,2]
[365801533,1749921048342,-1028.0,0.00023506,4]
[365801534,1749921048352,-216.58091068,0.00023506,4]
[365801535,1749921048362,-438.56657346,0.00023532,2]
[365801536,1749921048371,-1028.0,0.00023534,4]
[365801537,1749921048380,-1364.44460274,0.00023555,9]
[365801538,1749921048390,-1028.0,0.00023561,4]
[365801539,1749921048400,-460.62,0.00023561,4]
[365801540,1749921048410,-153.609304,0.00023561,7]
[365801541,1749921048419,-460.0,0.00023561,4]
[365801542,1749921048429,-310.0,0.00023561,4]
[365801543,1749921048438,-460.0,0.00023561,4]
[365801544,1749921048448,-460.0,0.00023561,4]
[365801545,1749921048457,-460.0,0.00023561,4]
[365801546,1749921048467,-460.0,0.00023561,4]
[365801547,1749921048477,-460.0,0.00023561,4]
[365801548,1749921048487,-1045.35,0.00023561,4]
[365801549,1749921048496,-822.01,0.00023561,4]
[365801550,1749921048506,-151.0,0.00023561,7]
[365801551,1749921048517,-151.909552,0.00023561,7]
[365801552,1749921048527,-807.53,0.00023561,4]
[365801553,1749921048537,-151.0,0.00023561,7]
[365801554,1749921048547,-460.0,0.00023561,4]
[365801555,1749921048557,-576.89,0.00023561,4]
[365801556,1749921048568,-460.0,0.00023561,4]
[365801557,1749921048578,-1068.84,0.00023561,4]
[365801558,1749921048589,-913.22,0.00023561,4]
[365801559,1749921048599,-1428.41,0.00023561,4]
[365801560,1749921048608,-460.0,0.00023561,4]
[365801561,1749921048619,-775.87,0.00023561,4]
[365801562,1749921048629,-460.0,0.00023561,4]
[365801563,1749921048639,-2464.38,0.00023561,4]
[365801564,1749921048649,-579.32,0.00023561,4]
[365801565,1749921048660,-488.76,0.00023561,4]
[365801566,1749921048670,-460.0,0.00023561,4]
[365801567,1749921048681,-2237.47,0.00023561,4]
[365801568,1749921048690,-1409.71,0.00023561,4]
[365801569,1749921048702,-1333.89,0.00023561,4]
[365801570,1749921048712,-460.0,0.00023561,4]
[365801571,1749921048722,-573.37,0.00023561,4]
[365801572,1749921048732,-460.0,0.00023561,4]
[365801573,1749921048742,-2361.47,0.00023561,4]
[365801574,1749921048751,-733.37,0.00023561,2]
[365801575,1749921048760,-2628.77,0.00023561,4]
[365801576,1749921048771,-852.23,0.00023561,4]
[365801577,1749921048780,-460.0,0.00023561,4]
[365801578,1749921048790,-2817.62,0.00023561,4]
[365801579,1749921048805,-1217.97,0.00023561,4]
[365801580,1749921048819,-476.46,0.00023561,4]
[365801581,1749921048829,-460.0,0.00023561,4]
[365801582,1749921048839,-460.0,0.00023561,4]
[365801583,1749921048849,-460.0,0.00023561,4]
[365801584,1749921048859,-1184.12,0.00023561,4]
[365801585,1749921048869,-460.0,0.00023561,4]
[365801586,1749921048878,-1416.1,0.00023561,4]
[365801587,1749921048888,-1577.86,0.00023561,4]
[365801588,1749921048898,-460.0,0.00023561,4]
[365801589,1749921048908,-2137.61,0.00023561,4]
[365801590,1749921048918,-460.0,0.00023561,4]
[365801591,1749921048928,-498.71,0.00023561,4]
[365801592,1749921048938,-2608.27,0.00023561,4]
[365801593,1749921048947,-420.0,0.00023561,4]
[365801594,1749921048957,-500.0,0.00023573,2]
[365801595,1749921048966,-500.0,0.00023573,2]
[365801596,1749921048976,-500.0,0.00023573,2]
[365801597,1749921048985,-500.0,0.00023573,2]
[365801598,1749921048994,-500.0,0.00023573,2]
[365801599,1749921049003,-600.0,0.00023573,2]
[365801600,1749921049013,-500.0,0.00023573,2]
[365801601,1749921049025,-500.0,0.00023573,2]
[365801602,1749921049034,-500.0,0.00023573,2]
[365801603,1749921049043,-500.81351494,0.00023573,2]
[365801604,1749921049053,-500.0,0.00023573,2]
[365801605,1749921049064,-500.0,0.00023573,2]
[365801606,1749921049074,-500.0,0.00023573,2]
[365801607,1749921049084,-421.21542315,0.00023573,2]
[365801608,1749921049094,-500.0,0.00023573,2]
[365801609,1749921049104,-500.0,0.00023573,2]
[365801610,1749921049114,-500.0,0.00023573,2]
[365801611,1749921049123,-168.16966624,0.00023587,2]
[365801612,1749921049132,-1028.0,0.00023588,4]
[365801613,1749921049142,-88770.18388843,0.000236,2]
[365801614,1749921049167,-29490.24631119,0.000236,2]
[365801615,1749921049408,-500.0,0.00021917,4]
[365801616,1749921049418,-460.0,0.00021917,4]
[365801617,1749921049427,-460.0,0.00021917,4]
[365801618,1749921049437,-460.0,0.00022191,4]
[365801619,1749921049446,-467.1895561,0.00022191,4]
[365801620,1749921049455,-278.79,0.00022191,4]
[365801621,1749921049464,-14264.0204439,0.000236,2]
[365801622,1749921049578,-460.0,0.00021917,4]
[365801623,1749921049588,-160.0,0.00022191,4]
[365801624,1749921049600,-300.0,0.00022191,4]
[365801625,1749921049609,-460.0,0.00022465,4]
[365801626,1749921049620,-460.0,0.00022739,4]
[365801627,1749921049630,-297.32,0.00023013,4]
[365801628,1749921049640,-151.0,0.00023561,7]
[365801629,1749921049650,-3625.02839304,0.000236,2]
[365801630,1749921049659,-151.0,0.000236,7]
[365801631,1749921049668,-151.0,0.000236,7]
[365801632,1749921049678,-151.0,0.000236,7]
[365801633,1749921049688,-151.0,0.000236,7]
[365801634,1749921049697,-602.92,0.000236,7]
[365801635,1749921049706,-151.0,0.000236,7]
[365801636,1749921049716,-576.309215,0.000236,2]
[365801637,1749921049727,-576.309215,0.000236,2]
[365801638,1749921049737,-164.636074,0.000236,7]
[365801639,1749921049746,-164.636074,0.000236,7]
[365801640,1749921049755,-151.0,0.000236,7]
[365801641,1749921049764,-151.0,0.000236,6]
[365801642,1749921049775,-151.0,0.000236,7]
[365801643,1749921049785,-401.350961,0.000236,7]
[365801644,1749921049797,-401.350961,0.000236,7]
[365801645,1749921049806,-317.0,0.000236,3]
[365801646,1749921049817,-317.0,0.000236,3]
[365801647,1749921049826,-317.0,0.000236,3]
[365801648,1749921049836,-317.0,0.000236,3]
[365801649,1749921049845,-317.0,0.000236,3]
[365801650,1749921049855,-317.0,0.000236,3]
[365801651,1749921049866,-317.0,0.000236,3]
[365801652,1749921049875,-279.9877432,0.000236,3]
[365801653,1749921049885,-151.0,0.000236,7]
[365801654,1749921049897,-151.0,0.000236,7]
[365801655,1749921049907,-151.0,0.000236,7]
[365801656,1749921049917,-279.436784,0.000236,7]
[365801657,1749921049927,-151.0,0.000236,7]
[365801658,1749921049938,-1028.0,0.00023616,4]
[365801659,1749921049947,-337.0,0.00023616,2]
[365801660,1749921049956,-2000.0,0.00023616,2]
[365801661,1749921049965,-1028.0,0.00023643,4]
[365801662,1749921049975,-229.00151918,0.0002365,2]
[365801663,1749921049984,-816.41,0.00023652,3]
[365801664,1749921049994,-1364.44460274,0.00023659,9]
[365801665,1749921050003,-310.21521894,0.00023662,2]
[365801666,1749921050014,-480.87358885,0.00023671,4]
[365801667,1749921050112,-290.76569224,0.00023671,4]
[365801671,1749921174610,338.950121,0.00013699,2]
[365801678,1749921366416,3876.64251927,0.0002,2]
[365801679,1749921366448,6123.35748073,0.0002,2]
[365801695,1749922029124,-161.33470926,0.00020187,2]
[365801696,1749922030127,-177.61541174,0.00020187,2]
[365801697,1749922030149,-180.754903,0.00020653,2]
[365801698,1749922030170,-160.0,0.00020767,2]
[365801699,1749922030192,-167.564,0.00020773,2]
[365801700,1749922030214,-424.0,0.00020773,2]
[365801701,1749922030235,-300.0,0.00020773,2]
[365801702,1749922030257,-300.0,0.00020773,2]
[365801703,1749922030279,-2454.39564756,0.00020774,2]
[365801706,1749922110330,1153.81665609,0.00019,2]
[365801707,1749922119701,476.86646318,0.00018,2]
[365801708,1749922119723,7754.0406,0.00018,2]
[365801709,1749922119749,7754.0406,0.00018,2]
[365801710,1749922119770,7754.0406,0.00018,2]
[365801711,1749922119791,7754.0406,0.00018,2]
[365801712,1749922119812,7754.0406,0.00018,2]
[365801713,1749922119834,7754.0406,0.00018,2]
[365801714,1749922119855,7754.0406,0.00018,2]
[365801715,1749922119876,7754.0406,0.00018,2]
[365801716,1749922119897,7754.0406,0.00018,2]
[365801717,1749922119918,268.75585601,0.00018,2]
[365801718,1749922120611,6234.14047638,0.0002,2]
[365801719,1749922121971,1251.14426761,0.0002,2]
[365801720,1749922121992,1434.77510273,0.0002,2]
[365801721,1749922124825,6319.26549727,0.0002,2]
[365801730,1749922160126,-2400.9920473,0.00019799,2]
[365801731,1749922166097,-1109.54990551,0.00019799,2]
[365801732,1749922172113,-1352.4,0.00019799,2]
[365801800,1749922232047,-1209.76463369,0.000189,2]
[365801803,1749922232058,-137.05804719,0.00019799,2]
[365801805,1749922232070,-300.0,0.00019999,2]
[365801807,1749922232080,-1200.0,0.00019999,2]
[365801809,1749922232091,-702.22726533,0.0002,2]
[365801811,1749922232102,-11882.1327046,0.0002,2]
[365801813,1749922232111,-269.121341,0.00020041,2]
[365801814,1749922232121,-14133.05388954,0.00020774,2]
[365801817,1749922232133,-876.47010365,0.00020774,2]
[365801818,1749922232210,-2337.37381974,0.00020774,2]
[365801874,1749922238136,-500.0,0.00020773,2]
[365801876,1749922238146,-500.0,0.00020773,2]
[365801878,1749922238157,-161.18398629,0.00020773,2]
[365801881,1749922238167,-251.9365963,0.00020773,2]
[365801883,1749922238176,-500.0,0.00020773,2]
[365801884,1749922238186,-500.0,0.00020773,2]
[365801887,1749922238196,-183.23293383,0.00020773,2]
[365801889,1749922238205,-227.134531,0.00020773,2]
[365801891,1749922238215,-5098.70653951,0.00020774,2]
[365801893,1749922238225,-1046.07419555,0.00021,4]
[365801895,1749922238234,-1365.1,0.00021006,2]
[365801897,1749922238244,-1046.07419543,0.00021038,4]
[365801899,1749922238254,-1214.40030705,0.00021154,2]
[365801901,1749922238263,-600.0,0.00021154,2]
[365801903,1749922238273,-1046.07419543,0.00021176,4]
[365801905,1749922238283,-1046.07419543,0.00021314,5]
[365801907,1749922238292,-1046.07419543,0.00021452,5]
[365801909,1749922238302,-1046.07419543,0.0002159,5]
[365801911,1749922238311,-168.0,0.00021618,2]
[365801913,1749922238322,-1046.07419543,0.00021728,5]
[365801915,1749922238331,-420.0,0.00021777,2]
[365801916,1749922238341,-1046.07419543,0.00021866,6]
[365801917,1749922238350,-480.0,0.00021881,2]
[365801918,1749922238359,-500.0,0.00021916,2]
[365801919,1749922238369,-500.0,0.00021916,2]
[365801920,1749922238378,-500.0,0.00021916,2]
[365801921,1749922238388,-199.61312062,0.00021916,2]
[365801922,1749922238397,-430.0,0.00021917,4]
[365801923,1749922238407,-460.0,0.00021917,4]
[365801924,1749922238428,-460.0,0.00021917,4]
[365801925,1749922238439,-430.0,0.00021917,4]
[365801926,1749922238449,-440.0,0.00021917,4]
[365801927,1749922238459,-440.0,0.00021917,4]
[365801928,1749922238469,-430.0,0.00021917,4]
[365801929,1749922238479,-430.0,0.00021917,4]
[365801930,1749922238489,-460.0,0.00021917,4]
[365801931,1749922238499,-275.13309956,0.00021917,4]
[365801932,1749922238509,-430.0,0.00021917,4]
[365801933,1749922238519,-440.0,0.00021917,4]
[365801934,1749922238528,-306.92071621,0.00021917,4]
[365801935,1749922238539,-460.0,0.00021917,4]
[365801936,1749922238549,-460.0,0.00021917,4]
[365801937,1749922238560,-460.0,0.00021917,4]
[365801938,1749922238569,-603.78525752,0.00021917,4]
[365801939,1749922238579,-430.0,0.00021917,4]
[365801940,1749922238590,-496.89084586,0.00021917,4]
[365801941,1749922238600,-460.0,0.00021917,4]
[365801942,1749922238610,-460.0,0.00021917,4]
[365801943,1749922238620,-460.0,0.00021917,4]
[365801944,1749922238630,-460.0,0.00021917,4]
[365801945,1749922238640,-460.0,0.00021917,4]
[365801946,1749922238650,-460.0,0.00021917,4]
[365801947,1749922238660,-230.0,0.00021917,4]
[365801948,1749922238670,-460.0,0.00021917,4]
[365801949,1749922238680,-460.0,0.00021917,4]
[365801950,1749922238690,-430.0,0.00021917,4]
[365801951,1749922238699,-490.0,0.00021917,4]
[365801952,1749922238709,-460.0,0.00021917,4]
[365801953,1749922238719,-460.0,0.00021917,4]
[365801954,1749922238729,-460.0,0.00021917,4]
[365801955,1749922238739,-460.0,0.00021917,4]
[365801956,1749922238749,-460.0,0.00021917,4]
[365801957,1749922238764,-460.0,0.00021917,4]
[365801958,1749922238774,-460.0,0.00021917,4]
[365801959,1749922238784,-460.0,0.00021917,4]
[365801960,1749922238794,-460.0,0.00021917,4]
[365801961,1749922238803,-460.0,0.00021917,4]
[365801962,1749922238814,-536.80791853,0.00021917,4]
[365801963,1749922238824,-460.0,0.00021917,4]
[365801964,1749922238834,-382.77796731,0.00021917,4]
[365801965,1749922238844,-350.0,0.00021917,4]
[365801966,1749922238854,-430.0,0.00021917,4]
[365801967,1749922238864,-460.0,0.00021917,4]
[365801968,1749922238874,-1180.08,0.00021917,4]
[365801969,1749922238884,-500.0,0.00021917,4]
[365801970,1749922238895,-460.0,0.00021917,4]
[365801971,1749922238904,-2064.89,0.00021917,4]
[365801972,1749922238914,-460.0,0.00021917,4]
[365801973,1749922238924,-238.9247005,0.00021917,4]
[365801974,1749922238934,-460.0,0.00021917,4]
[365801975,1749922238944,-460.0,0.00021917,4]
[365801976,1749922238954,-460.0,0.00021917,4]
[365801977,1749922238964,-827.57,0.00021917,4]
[365801978,1749922238974,-528.96,0.00021917,4]
[365801979,1749922238984,-715.79,0.00021917,4]
[365801980,1749922238995,-460.0,0.00021917,4]
[365801981,1749922239005,-460.0,0.00021917,4]
[365801982,1749922239015,-460.0,0.00021917,4]
[365801983,1749922239025,-410.0,0.00021917,4]
[365801984,1749922239038,-460.0,0.00021917,4]
[365801985,1749922239048,-460.0,0.00021917,4]
[365801986,1749922239058,-460.0,0.00021917,4]
[365801987,1749922239068,-924.34,0.00021917,4]
[365801988,1749922239077,-460.0,0.00021917,4]
[365801990,1749922239087,-460.0,0.00021917,4]
[365801991,1749922239096,-460.0,0.00021917,4]
[365801992,1749922239107,-796.8,0.00021917,4]
[365801993,1749922239118,-505.16,0.00021917,4]
[365801994,1749922239127,-1247.78,0.00021917,4]
[365801995,1749922239138,-460.0,0.00021917,4]
[365801996,1749922239147,-460.0,0.00021917,4]
[365801997,1749922239157,-460.0,0.00021917,4]
[365801998,1749922239167,-580.0,0.00021917,4]
[365801999,1749922239177,-563.07766382,0.00021917,4]
[365802000,1749922239187,-460.0,0.00021917,4]
[365802001,1749922239197,-670.82,0.00021917,4]
[365802002,1749922239206,-460.0,0.00021917,4]
[365802003,1749922239216,-430.0,0.00021917,4]
[365802004,1749922239226,-460.0,0.00021917,4]
[365802005,1749922239236,-430.0,0.00021917,4]
[365802006,1749922239245,-2156.33,0.00021917,4]
[365802007,1749922239255,-460.0,0.00021917,4]
[365802008,1749922239264,-460.0,0.00021917,4]
[365802009,1749922239274,-430.0,0.00021917,4]
[365802010,1749922239284,-506.91,0.00021917,4]
[365802011,1749922239293,-430.0,0.00021917,4]
[365802012,1749922239303,-1233.5,0.00021917,4]
[365802013,1749922239313,-501.7,0.00021917,4]
[365802014,1749922239323,-460.0,0.00021917,4]
[365802015,1749922239332,-460.0,0.00021917,4]
[365802016,1749922239342,-460.0,0.00021917,4]
[365802017,1749922239352,-522.02060256,0.00021917,4]
[365802018,1749922239361,-460.0,0.00021917,4]
[365802019,1749922239372,-1167.15,0.00021917,4]
[365802020,1749922239381,-430.0,0.00021917,4]
[365802021,1749922239391,-704.04,0.00021917,2]